[Event "Titled Tuesday Blitz December 13 Early 2022"]
[White "Tomaszewski, Kacper"]
[Black "Sankalan Shah"]
[WhiteFideId "1127373"]
[BlackFideId "25600362"]
[WhiteElo "2211"]
[BlackElo "2118"]
[Result "1-0"]
[Round "04"]
[TimeControl "180+1"]
[Date "2022.12.14"]
[WhiteClock "0:00:05"]
[BlackClock "0:00:05"]

1. Nf3 {[%clk 0:03:00]}  Nf6 {[%clk 0:02:57]} 2. c4 {[%clk 0:02:59]}  e6 {[%clk 0:02:54]} 3. Nc3 {[%clk 0:02:57]}  d5 {[%clk 0:02:54]} 4. cxd5 {[%clk 0:02:52]}  exd5 {[%clk 0:02:54]} 5. d4 {[%clk 0:02:52]}  c6 {[%clk 0:02:52]} 6. Bf4 {[%clk 0:02:44]}  Be7 {[%clk 0:02:43]} 7. e3 {[%clk 0:02:44]}  O-O {[%clk 0:02:43]} 8. Bd3 {[%clk 0:02:44]}  h6 {[%clk 0:02:43]} 9. h3 {[%clk 0:02:44]}  Re8 {[%clk 0:02:44]} 10. Qc2 {[%clk 0:02:44]}  Nbd7 {[%clk 0:02:43]} 11. O-O-O {[%clk 0:02:40]}  c5 {[%clk 0:02:35]} 12. dxc5 {[%clk 0:02:37]}  Nxc5 {[%clk 0:02:35]} 13. Bb5 {[%clk 0:02:21]}  Bd7 {[%clk 0:02:14]} 14. Bxd7 {[%clk 0:02:13]}  Qxd7 {[%clk 0:02:11]} 15. Kb1 {[%clk 0:02:13]}  Rac8 {[%clk 0:02:11]} 16. Ne5 {[%clk 0:01:56]}  Qd8 {[%clk 0:02:10]} 17. Qf5 {[%clk 0:01:53]}  Bd6 {[%clk 0:01:38]} 18. Nxd5 {[%clk 0:01:45]}  Bxe5 {[%clk 0:01:37]} 19. Bxe5 {[%clk 0:01:36]}  Nxd5 {[%clk 0:01:33]} 20. e4 {[%clk 0:01:33]}  Qe7 {[%clk 0:01:20]} 21. Rxd5 {[%clk 0:01:30]}  f6 {[%clk 0:01:00]} 22. Bd4 {[%clk 0:00:55]}  Nxe4 {[%clk 0:00:48]} 23. Be3 {[%clk 0:00:43]}  Qb4 {[%clk 0:00:43]} 24. Ka1 {[%clk 0:00:21]}  Rc2 {[%clk 0:00:43]} 25. Rb1 {[%clk 0:00:18]}  Rec8 {[%clk 0:00:21]} 26. Rd4 {[%clk 0:00:07]}  Nd6 {[%clk 0:00:07]} 27. Qxc8+ {[%clk 0:00:04]}  Rxc8 {[%clk 0:00:06]} 28. Rxb4 {[%clk 0:00:05]}  b6 {[%clk 0:00:05]} 29. Rb3 {[%clk 0:00:06]}  Nc4 {[%clk 0:00:05]} 30. Bf4 {[%clk 0:00:05]}  Rc6 {[%clk 0:00:05]} 31. Rc1 {[%clk 0:00:05]} 1-0


[Site "https://www.chess.com"]

[Event "Titled Tuesday Blitz December 13 Early 2022"]
[White "Topalov, Aleksandar"]
[Black "Seo, Jung Min"]
[WhiteFideId "925659"]
[BlackFideId "1734687"]
[WhiteElo "2151"]
[BlackElo "2457"]
[Result "0-1"]
[Round "04"]
[TimeControl "180+1"]
[Date "2022.12.14"]
[WhiteClock "0:00:03"]
[BlackClock "0:01:07"]

1. b3 {[%clk 0:03:00]}  d5 {[%clk 0:02:59]} 2. Bb2 {[%clk 0:03:00]}  Bf5 {[%clk 0:02:58]} 3. Nf3 {[%clk 0:03:00]}  Nf6 {[%clk 0:02:59]} 4. g3 {[%clk 0:03:00]}  Nbd7 {[%clk 0:02:58]} 5. Bg2 {[%clk 0:02:59]}  h6 {[%clk 0:02:58]} 6. O-O {[%clk 0:02:58]}  e6 {[%clk 0:02:58]} 7. d3 {[%clk 0:02:58]}  c6 {[%clk 0:02:59]} 8. Nbd2 {[%clk 0:02:58]}  Be7 {[%clk 0:02:59]} 9. e4 {[%clk 0:02:54]}  Bh7 {[%clk 0:02:55]} 10. Qe2 {[%clk 0:02:53]}  O-O {[%clk 0:02:55]} 11. Kh1 {[%clk 0:02:52]}  a5 {[%clk 0:02:54]} 12. a3 {[%clk 0:02:51]}  Qc7 {[%clk 0:02:54]} 13. Ng1 {[%clk 0:02:47]}  dxe4 {[%clk 0:02:45]} 14. dxe4 {[%clk 0:02:46]}  e5 {[%clk 0:02:45]} 15. Bh3 {[%clk 0:02:36]}  b5 {[%clk 0:02:44]} 16. Ngf3 {[%clk 0:02:32]}  Bd6 {[%clk 0:02:43]} 17. Nh4 {[%clk 0:02:32]}  Rfe8 {[%clk 0:02:41]} 18. Nf5 {[%clk 0:02:31]}  Bf8 {[%clk 0:02:41]} 19. f3 {[%clk 0:02:22]}  a4 {[%clk 0:02:38]} 20. b4 {[%clk 0:02:20]}  c5 {[%clk 0:02:38]} 21. bxc5 {[%clk 0:01:59]}  Qxc5 {[%clk 0:02:38]} 22. c4 {[%clk 0:01:55]}  b4 {[%clk 0:02:28]} 23. axb4 {[%clk 0:01:54]}  Qxb4 {[%clk 0:02:28]} 24. Ba3 {[%clk 0:01:54]}  Qa5 {[%clk 0:02:28]} 25. Bxf8 {[%clk 0:01:52]}  Rxf8 {[%clk 0:02:28]} 26. Ra3 {[%clk 0:01:47]}  Nc5 {[%clk 0:02:23]} 27. Ne3 {[%clk 0:01:34]}  Rfb8 {[%clk 0:02:20]} 28. Rfa1 {[%clk 0:01:31]}  Rb2 {[%clk 0:02:19]} 29. R1a2 {[%clk 0:01:24]}  Rab8 {[%clk 0:02:17]} 30. Nd1 {[%clk 0:01:01]}  Rxa2 {[%clk 0:02:12]} 31. Rxa2 {[%clk 0:01:01]}  Rd8 {[%clk 0:02:06]} 32. Ne3 {[%clk 0:00:51]}  Qc3 {[%clk 0:02:03]} 33. Nd5 {[%clk 0:00:48]}  Nxd5 {[%clk 0:02:03]} 34. cxd5 {[%clk 0:00:48]}  f5 {[%clk 0:01:53]} 35. Bxf5 {[%clk 0:00:30]}  Bxf5 {[%clk 0:01:53]} 36. exf5 {[%clk 0:00:30]}  Rxd5 {[%clk 0:01:50]} 37. Qc4 {[%clk 0:00:22]}  Qxc4 {[%clk 0:01:46]} 38. Nxc4 {[%clk 0:00:22]}  Kf7 {[%clk 0:01:46]} 39. Kg2 {[%clk 0:00:13]}  Kf6 {[%clk 0:01:45]} 40. g4 {[%clk 0:00:14]}  Rd4 {[%clk 0:01:34]} 41. Nd2 {[%clk 0:00:11]}  Ke7 {[%clk 0:01:28]} 42. h4 {[%clk 0:00:10]}  Kd6 {[%clk 0:01:26]} 43. Kf2 {[%clk 0:00:09]}  Kd5 {[%clk 0:01:19]} 44. Ke2 {[%clk 0:00:09]}  h5 {[%clk 0:01:14]} 45. gxh5 {[%clk 0:00:04]}  Rxh4 {[%clk 0:01:14]} 46. Ke3 {[%clk 0:00:03]}  Rf4 {[%clk 0:01:07]} 47. Ne4 {[%clk 0:00:03]}  Nxe4 {[%clk 0:01:07]} 0-1


[Site "https://www.chess.com"]

[Event "Titled Tuesday Blitz December 13 Early 2022"]
[White "Tristan, Leonardo"]
[Black "Roebers, Jan"]
[WhiteFideId "113816"]
[BlackFideId "1007815"]
[WhiteElo "2461"]
[BlackElo "2138"]
[Result "1/2-1/2"]
[Round "04"]
[TimeControl "180+1"]
[Date "2022.12.14"]
[WhiteClock "0:00:26"]
[BlackClock "0:00:13"]

1. d4 {[%clk 0:03:00]}  d5 {[%clk 0:01:07]} 2. Nf3 {[%clk 0:02:53]}  Nf6 {[%clk 0:01:05]} 3. Bf4 {[%clk 0:02:54]}  e6 {[%clk 0:01:03]} 4. e3 {[%clk 0:02:54]}  c5 {[%clk 0:00:56]} 5. Nbd2 {[%clk 0:02:53]}  cxd4 {[%clk 0:00:51]} 6. exd4 {[%clk 0:02:53]}  Nc6 {[%clk 0:00:50]} 7. c3 {[%clk 0:02:46]}  Be7 {[%clk 0:00:47]} 8. Bd3 {[%clk 0:02:44]}  O-O {[%clk 0:00:46]} 9. O-O {[%clk 0:02:44]}  Nh5 {[%clk 0:00:40]} 10. Be3 {[%clk 0:02:42]}  Nf6 {[%clk 0:00:39]} 11. Ne5 {[%clk 0:02:41]}  Nxe5 {[%clk 0:00:38]} 12. dxe5 {[%clk 0:02:41]}  Nd7 {[%clk 0:00:38]} 13. f4 {[%clk 0:02:41]}  f5 {[%clk 0:00:38]} 14. exf6 {[%clk 0:02:37]}  Nxf6 {[%clk 0:00:36]} 15. Nf3 {[%clk 0:02:35]}  h6 {[%clk 0:00:32]} 16. Ne5 {[%clk 0:02:34]}  Ne4 {[%clk 0:00:31]} 17. Qc2 {[%clk 0:02:31]}  Bf6 {[%clk 0:00:30]} 18. Bxe4 {[%clk 0:02:23]}  dxe4 {[%clk 0:00:30]} 19. Qxe4 {[%clk 0:02:24]}  Qd5 {[%clk 0:00:30]} 20. Qxd5 {[%clk 0:02:20]}  exd5 {[%clk 0:00:30]} 21. Nf3 {[%clk 0:02:05]}  Re8 {[%clk 0:00:24]} 22. Bd4 {[%clk 0:02:04]}  Bg4 {[%clk 0:00:22]} 23. Bxf6 {[%clk 0:02:02]}  Bxf3 {[%clk 0:00:22]} 24. Rxf3 {[%clk 0:02:02]}  gxf6 {[%clk 0:00:21]} 25. Rd1 {[%clk 0:02:01]}  Re2 {[%clk 0:00:20]} 26. Rf2 {[%clk 0:02:02]}  Rae8 {[%clk 0:00:20]} 27. Rxd5 {[%clk 0:01:59]}  Re1+ {[%clk 0:00:20]} 28. Rf1 {[%clk 0:02:00]}  R1e2 {[%clk 0:00:20]} 29. Rfd1 {[%clk 0:01:02]}  Rxb2 {[%clk 0:00:19]} 30. Rd8 {[%clk 0:01:03]}  Rxd8 {[%clk 0:00:18]} 31. Rxd8+ {[%clk 0:01:03]}  Kf7 {[%clk 0:00:19]} 32. f5 {[%clk 0:01:00]}  Ke7 {[%clk 0:00:18]} 33. Rh8 {[%clk 0:00:55]}  Kd6 {[%clk 0:00:19]} 34. Rxh6 {[%clk 0:00:55]}  Ke5 {[%clk 0:00:19]} 35. g4 {[%clk 0:00:55]}  Rxa2 {[%clk 0:00:18]} 36. Rg6 {[%clk 0:00:55]}  a5 {[%clk 0:00:16]} 37. Rg7 {[%clk 0:00:50]}  Kf4 {[%clk 0:00:14]} 38. h3 {[%clk 0:00:46]}  Kf3 {[%clk 0:00:14]} 39. h4 {[%clk 0:00:34]}  Ra1+ {[%clk 0:00:14]} 40. Kh2 {[%clk 0:00:34]}  Ra2+ {[%clk 0:00:13]} 41. Kh3 {[%clk 0:00:35]}  Ra1 {[%clk 0:00:13]} 42. Kh2 {[%clk 0:00:27]}  Ra2+ {[%clk 0:00:13]} 43. Kg1 {[%clk 0:00:26]}  Ra1+ {[%clk 0:00:13]} 44. Kh2 {[%clk 0:00:26]} 1/2-1/2


[Site "https://www.chess.com"]

[Event "Titled Tuesday Blitz December 13 Early 2022"]
[White "Vianello, Enrico"]
[Black "Vifleemskaia, Svetlana"]
[WhiteFideId "810738"]
[BlackFideId "4129490"]
[WhiteElo "2096"]
[BlackElo "1930"]
[Result "0-1"]
[Round "04"]
[TimeControl "180+1"]
[Date "2022.12.14"]
[WhiteClock "0:00:16"]
[BlackClock "0:00:19"]

1. d4 {[%clk 0:03:00]}  Nf6 {[%clk 0:02:38]} 2. Bg5 {[%clk 0:02:59]}  Ne4 {[%clk 0:02:37]} 3. Bf4 {[%clk 0:02:59]}  d5 {[%clk 0:02:38]} 4. Nd2 {[%clk 0:02:58]}  Bf5 {[%clk 0:02:37]} 5. e3 {[%clk 0:02:58]}  c5 {[%clk 0:02:37]} 6. c3 {[%clk 0:02:55]}  Nc6 {[%clk 0:02:36]} 7. Bd3 {[%clk 0:02:55]}  Bg6 {[%clk 0:02:28]} 8. Bxe4 {[%clk 0:02:55]}  dxe4 {[%clk 0:02:27]} 9. h3 {[%clk 0:02:54]}  e6 {[%clk 0:02:23]} 10. Ne2 {[%clk 0:02:53]}  Bd6 {[%clk 0:02:20]} 11. Bxd6 {[%clk 0:02:42]}  Qxd6 {[%clk 0:02:20]} 12. Nf4 {[%clk 0:02:43]}  cxd4 {[%clk 0:02:09]} 13. cxd4 {[%clk 0:02:39]}  e5 {[%clk 0:01:58]} 14. Nxg6 {[%clk 0:02:33]}  Qxg6 {[%clk 0:01:57]} 15. O-O {[%clk 0:02:28]}  exd4 {[%clk 0:01:52]} 16. exd4 {[%clk 0:02:28]}  O-O {[%clk 0:01:48]} 17. d5 {[%clk 0:02:17]}  Ne5 {[%clk 0:01:41]} 18. Qe2 {[%clk 0:02:03]}  f5 {[%clk 0:01:37]} 19. f4 {[%clk 0:01:59]}  Nd3 {[%clk 0:01:32]} 20. Nc4 {[%clk 0:01:55]}  Qf6 {[%clk 0:01:24]} 21. b3 {[%clk 0:01:44]}  Qd4+ {[%clk 0:01:21]} 22. Ne3 {[%clk 0:01:41]}  g5 {[%clk 0:01:10]} 23. Kh1 {[%clk 0:01:25]}  gxf4 {[%clk 0:01:01]} 24. Nxf5 {[%clk 0:01:19]}  Qf6 {[%clk 0:00:35]} 25. Qg4+ {[%clk 0:01:12]}  Kh8 {[%clk 0:00:34]} 26. Nh4 {[%clk 0:01:05]}  Rg8 {[%clk 0:00:32]} 27. Qh5 {[%clk 0:01:05]}  Qg5 {[%clk 0:00:30]} 28. Qxg5 {[%clk 0:00:55]}  Rxg5 {[%clk 0:00:31]} 29. g4 {[%clk 0:00:42]}  Rxd5 {[%clk 0:00:27]} 30. Ng2 {[%clk 0:00:36]}  Rf8 {[%clk 0:00:25]} 31. Kg1 {[%clk 0:00:21]}  h5 {[%clk 0:00:24]} 32. Rad1 {[%clk 0:00:18]}  hxg4 {[%clk 0:00:23]} 33. hxg4 {[%clk 0:00:19]}  Rg5 {[%clk 0:00:20]} 34. Ne3 {[%clk 0:00:18]}  Rgg8 {[%clk 0:00:19]} 35. Nd5 {[%clk 0:00:15]}  Rxg4+ {[%clk 0:00:19]} 36. Kh2 {[%clk 0:00:16]}  Rf5 {[%clk 0:00:19]} 0-1


[Site "https://www.chess.com"]

[Event "Titled Tuesday Blitz December 13 Early 2022"]
[White "Wagner, Dennis"]
[Black "Bagwe Gaurang"]
[WhiteFideId "24650684"]
[BlackFideId "45039895"]
[WhiteElo "2470"]
[BlackElo "1847"]
[Result "1-0"]
[Round "04"]
[TimeControl "180+1"]
[Date "2022.12.14"]
[WhiteClock "0:00:04"]
[BlackClock "0:00:03"]

1. d4 {[%clk 0:03:00]}  d5 {[%clk 0:02:57]} 2. c4 {[%clk 0:03:00]}  c6 {[%clk 0:02:57]} 3. Nf3 {[%clk 0:03:01]}  Nf6 {[%clk 0:02:57]} 4. Nc3 {[%clk 0:03:01]}  dxc4 {[%clk 0:02:58]} 5. a4 {[%clk 0:03:00]}  Bf5 {[%clk 0:02:58]} 6. Ne5 {[%clk 0:03:00]}  Nbd7 {[%clk 0:02:59]} 7. Nxc4 {[%clk 0:03:00]}  Nb6 {[%clk 0:02:59]} 8. Ne5 {[%clk 0:03:00]}  Nfd7 {[%clk 0:02:56]} 9. e4 {[%clk 0:02:52]}  Nxe5 {[%clk 0:02:51]} 10. exf5 {[%clk 0:02:52]}  Ned7 {[%clk 0:02:46]} 11. a5 {[%clk 0:02:50]}  Nc8 {[%clk 0:02:44]} 12. Bd3 {[%clk 0:02:36]}  Nd6 {[%clk 0:02:44]} 13. O-O {[%clk 0:02:37]}  g6 {[%clk 0:02:44]} 14. d5 {[%clk 0:02:17]}  Bg7 {[%clk 0:02:34]} 15. Re1 {[%clk 0:02:00]}  Ne5 {[%clk 0:02:25]} 16. a6 {[%clk 0:01:44]}  cxd5 {[%clk 0:01:46]} 17. axb7 {[%clk 0:01:24]}  Rb8 {[%clk 0:01:40]} 18. Nxd5 {[%clk 0:00:51]}  O-O {[%clk 0:00:56]} 19. Ba6 {[%clk 0:00:49]}  Nxf5 {[%clk 0:00:52]} 20. Bf4 {[%clk 0:00:48]}  f6 {[%clk 0:00:45]} 21. Rc1 {[%clk 0:00:34]}  e6 {[%clk 0:00:40]} 22. Nb4 {[%clk 0:00:24]}  Qb6 {[%clk 0:00:36]} 23. Qa4 {[%clk 0:00:21]}  Rxb7 {[%clk 0:00:12]} 24. Bxb7 {[%clk 0:00:20]}  Qxb7 {[%clk 0:00:13]} 25. Bxe5 {[%clk 0:00:19]}  fxe5 {[%clk 0:00:12]} 26. Nc6 {[%clk 0:00:19]}  Nh4 {[%clk 0:00:04]} 27. Qxa7 {[%clk 0:00:16]}  Qxb2 {[%clk 0:00:02]} 28. Rcd1 {[%clk 0:00:12]}  Nf5 {[%clk 0:00:03]} 29. Rd7 {[%clk 0:00:11]}  e4 {[%clk 0:00:03]} 30. Rf1 {[%clk 0:00:09]}  Qf6 {[%clk 0:00:03]} 31. g3 {[%clk 0:00:08]}  h5 {[%clk 0:00:04]} 32. Qa4 {[%clk 0:00:05]}  h4 {[%clk 0:00:04]} 33. Qxe4 {[%clk 0:00:05]}  hxg3 {[%clk 0:00:04]} 34. fxg3 {[%clk 0:00:06]}  Bh6 {[%clk 0:00:04]} 35. Ne5 {[%clk 0:00:03]}  Be3+ {[%clk 0:00:04]} 36. Kg2 {[%clk 0:00:03]}  Nh4+ {[%clk 0:00:05]} 37. gxh4 {[%clk 0:00:02]}  Qxf1+ {[%clk 0:00:05]} 38. Kg3 {[%clk 0:00:03]}  Qg1+ {[%clk 0:00:05]} 39. Qg2 {[%clk 0:00:03]}  Bf2+ {[%clk 0:00:04]} 40. Kh3 {[%clk 0:00:03]}  Qxg2+ {[%clk 0:00:03]} 41. Kxg2 {[%clk 0:00:04]} 1-0


[Site "https://www.chess.com"]

[Event "Titled Tuesday Blitz December 13 Early 2022"]
[White "Walentukiewicz, Michal"]
[Black "Bacrot, Etienne"]
[WhiteFideId "1126903"]
[BlackFideId "605506"]
[WhiteElo "2028"]
[BlackElo "2667"]
[Result "0-1"]
[Round "04"]
[TimeControl "180+1"]
[Date "2022.12.14"]
[WhiteClock "0:01:20"]
[BlackClock "0:00:56"]

1. g3 {[%clk 0:03:00]}  d5 {[%clk 0:02:59]} 2. Bg2 {[%clk 0:03:01]}  Nf6 {[%clk 0:02:59]} 3. c4 {[%clk 0:03:01]}  c6 {[%clk 0:02:59]} 4. cxd5 {[%clk 0:03:01]}  cxd5 {[%clk 0:02:59]} 5. Nf3 {[%clk 0:03:02]}  Nc6 {[%clk 0:02:59]} 6. O-O {[%clk 0:03:03]}  e5 {[%clk 0:02:59]} 7. d3 {[%clk 0:03:04]}  Bd6 {[%clk 0:02:58]} 8. Nc3 {[%clk 0:03:04]}  h6 {[%clk 0:02:59]} 9. a3 {[%clk 0:03:04]}  O-O {[%clk 0:02:58]} 10. b4 {[%clk 0:03:04]}  a6 {[%clk 0:02:56]} 11. Bb2 {[%clk 0:03:05]}  Be6 {[%clk 0:02:50]} 12. Rc1 {[%clk 0:03:04]}  Re8 {[%clk 0:02:48]} 13. Na4 {[%clk 0:03:04]}  Qe7 {[%clk 0:02:24]} 14. Nc5 {[%clk 0:03:04]}  Bf5 {[%clk 0:02:24]} 15. Qb3 {[%clk 0:02:54]}  a5 {[%clk 0:02:12]} 16. e4 {[%clk 0:02:25]}  axb4 {[%clk 0:02:07]} 17. axb4 {[%clk 0:02:23]}  dxe4 {[%clk 0:02:03]} 18. dxe4 {[%clk 0:02:23]}  Bg4 {[%clk 0:01:53]} 19. h3 {[%clk 0:02:15]}  Bxc5 {[%clk 0:01:30]} 20. Rxc5 {[%clk 0:02:06]}  Be6 {[%clk 0:01:21]} 21. Qe3 {[%clk 0:01:48]}  Nd7 {[%clk 0:01:09]} 22. Rcc1 {[%clk 0:01:30]}  Qxb4 {[%clk 0:01:05]} 23. Bc3 {[%clk 0:01:29]}  Qc5 {[%clk 0:00:58]} 24. Qxc5 {[%clk 0:01:27]}  Nxc5 {[%clk 0:00:58]} 25. Nxe5 {[%clk 0:01:26]}  Nxe5 {[%clk 0:00:58]} 26. Bxe5 {[%clk 0:01:27]}  Nd3 {[%clk 0:00:58]} 27. Bf4 {[%clk 0:01:23]}  Nxc1 {[%clk 0:00:58]} 28. Bxc1 {[%clk 0:01:24]}  b5 {[%clk 0:00:57]} 29. Be3 {[%clk 0:01:24]}  b4 {[%clk 0:00:57]} 30. Rb1 {[%clk 0:01:24]}  b3 {[%clk 0:00:57]} 31. Bd4 {[%clk 0:01:24]}  Red8 {[%clk 0:00:57]} 32. Be5 {[%clk 0:01:23]}  f6 {[%clk 0:00:57]} 33. Bc3 {[%clk 0:01:23]}  Rac8 {[%clk 0:00:57]} 34. Bb2 {[%clk 0:01:23]}  Rc2 {[%clk 0:00:57]} 35. Ba3 {[%clk 0:01:20]}  Rdd2 {[%clk 0:00:56]} 0-1


[Site "https://www.chess.com"]

[Event "Titled Tuesday Blitz December 13 Early 2022"]
[White "Xie, Bryan"]
[Black "Maksimovic, Bojan"]
[WhiteFideId "30941296"]
[BlackFideId "14408120"]
[WhiteElo "2033"]
[BlackElo "2462"]
[Result "0-1"]
[Round "04"]
[TimeControl "180+1"]
[Date "2022.12.14"]
[WhiteClock "0:00:01"]
[BlackClock "0:00:05"]

1. e4 {[%clk 0:02:54]}  c5 {[%clk 0:02:58]} 2. Nf3 {[%clk 0:02:54]}  e6 {[%clk 0:02:58]} 3. d4 {[%clk 0:02:54]}  cxd4 {[%clk 0:02:59]} 4. Nxd4 {[%clk 0:02:54]}  a6 {[%clk 0:02:59]} 5. Nc3 {[%clk 0:02:49]}  b5 {[%clk 0:02:57]} 6. Be2 {[%clk 0:02:35]}  Bb7 {[%clk 0:02:56]} 7. Bf3 {[%clk 0:02:35]}  Nc6 {[%clk 0:02:55]} 8. O-O {[%clk 0:02:31]}  Nge7 {[%clk 0:02:48]} 9. e5 {[%clk 0:02:10]}  Qb8 {[%clk 0:02:34]} 10. Re1 {[%clk 0:01:54]}  Nxd4 {[%clk 0:02:22]} 11. Bxb7 {[%clk 0:01:53]}  Qxb7 {[%clk 0:02:23]} 12. Qxd4 {[%clk 0:01:52]}  Nc6 {[%clk 0:02:19]} 13. Qd1 {[%clk 0:01:44]}  Bb4 {[%clk 0:01:52]} 14. Qg4 {[%clk 0:01:03]}  Bxc3 {[%clk 0:01:15]} 15. bxc3 {[%clk 0:01:03]}  O-O-O {[%clk 0:00:58]} 16. Ba3 {[%clk 0:00:54]}  f6 {[%clk 0:00:54]} 17. exf6 {[%clk 0:00:38]}  gxf6 {[%clk 0:00:55]} 18. Qf3 {[%clk 0:00:34]}  Rhg8 {[%clk 0:00:47]} 19. Rad1 {[%clk 0:00:31]}  Ne5 {[%clk 0:00:38]} 20. Qxb7+ {[%clk 0:00:31]}  Kxb7 {[%clk 0:00:39]} 21. Kf1 {[%clk 0:00:29]}  Nc6 {[%clk 0:00:33]} 22. Bd6 {[%clk 0:00:22]}  h5 {[%clk 0:00:29]} 23. Re3 {[%clk 0:00:21]}  Rg4 {[%clk 0:00:27]} 24. Red3 {[%clk 0:00:21]}  Kc8 {[%clk 0:00:25]} 25. Bc5 {[%clk 0:00:20]}  d5 {[%clk 0:00:21]} 26. Rh3 {[%clk 0:00:18]}  h4 {[%clk 0:00:21]} 27. Bd4 {[%clk 0:00:17]}  e5 {[%clk 0:00:21]} 28. Be3 {[%clk 0:00:16]}  Rc4 {[%clk 0:00:18]} 29. Bc1 {[%clk 0:00:10]}  a5 {[%clk 0:00:18]} 30. Rhd3 {[%clk 0:00:09]}  b4 {[%clk 0:00:16]} 31. Rxd5 {[%clk 0:00:07]}  Rxd5 {[%clk 0:00:14]} 32. Rxd5 {[%clk 0:00:08]}  Rxc3 {[%clk 0:00:14]} 33. Rd2 {[%clk 0:00:02]}  Nd4 {[%clk 0:00:14]} 34. Bb2 {[%clk 0:00:02]}  Rxc2 {[%clk 0:00:14]} 35. Rxc2+ {[%clk 0:00:03]}  Nxc2 {[%clk 0:00:14]} 36. Ke2 {[%clk 0:00:03]}  a4 {[%clk 0:00:05]} 37. Kd3 {[%clk 0:00:04]}  Ne1+ {[%clk 0:00:04]} 38. Kc4 {[%clk 0:00:03]}  b3 {[%clk 0:00:04]} 39. axb3 {[%clk 0:00:02]}  axb3 {[%clk 0:00:05]} 40. g3 {[%clk 0:00:02]}  h3 {[%clk 0:00:05]} 41. Kxb3 {[%clk 0:00:01]}  Nf3 {[%clk 0:00:05]} 0-1


[Site "https://www.chess.com"]

[Event "Titled Tuesday Blitz December 13 Early 2022"]
[White "Yeremyan, Alen"]
[Black "Krzywda, Andrzej"]
[WhiteFideId "13308998"]
[BlackFideId "1114565"]
[WhiteElo "2159"]
[BlackElo "2149"]
[Result "0-1"]
[Round "04"]
[TimeControl "180+1"]
[Date "2022.12.14"]
[WhiteClock "0:01:56"]
[BlackClock "0:01:15"]

1. e4 {[%clk 0:02:50]}  c5 {[%clk 0:02:59]} 2. g3 {[%clk 0:02:50]}  g6 {[%clk 0:02:59]} 3. Bg2 {[%clk 0:02:51]}  Bg7 {[%clk 0:02:59]} 4. Ne2 {[%clk 0:02:51]}  Nc6 {[%clk 0:02:59]} 5. O-O {[%clk 0:02:52]}  d6 {[%clk 0:02:59]} 6. c3 {[%clk 0:02:53]}  e5 {[%clk 0:02:59]} 7. d4 {[%clk 0:02:54]}  cxd4 {[%clk 0:02:59]} 8. cxd4 {[%clk 0:02:54]}  exd4 {[%clk 0:02:59]} 9. Na3 {[%clk 0:02:55]}  Nge7 {[%clk 0:02:59]} 10. Nb5 {[%clk 0:02:55]}  O-O {[%clk 0:02:57]} 11. Bf4 {[%clk 0:02:55]}  Ne5 {[%clk 0:02:55]} 12. Nbxd4 {[%clk 0:02:54]}  d5 {[%clk 0:02:53]} 13. Bg5 {[%clk 0:02:53]}  f6 {[%clk 0:02:49]} 14. Bf4 {[%clk 0:02:51]}  dxe4 {[%clk 0:02:46]} 15. Nc3 {[%clk 0:02:44]}  f5 {[%clk 0:02:40]} 16. Qb3+ {[%clk 0:02:43]}  Kh8 {[%clk 0:02:38]} 17. Ne6 {[%clk 0:02:43]}  Bxe6 {[%clk 0:02:38]} 18. Qxe6 {[%clk 0:02:44]}  N7c6 {[%clk 0:02:35]} 19. Rad1 {[%clk 0:02:42]}  Qe8 {[%clk 0:02:32]} 20. Qxe8 {[%clk 0:02:40]}  Raxe8 {[%clk 0:02:32]} 21. Be3 {[%clk 0:02:39]}  Nd3 {[%clk 0:02:31]} 22. Rd2 {[%clk 0:02:39]}  Nce5 {[%clk 0:02:25]} 23. b3 {[%clk 0:02:35]}  Ng4 {[%clk 0:02:18]} 24. Nd5 {[%clk 0:02:33]}  Rd8 {[%clk 0:02:11]} 25. Nf4 {[%clk 0:02:27]}  Nxe3 {[%clk 0:02:10]} 26. fxe3 {[%clk 0:02:28]}  Ne5 {[%clk 0:02:09]} 27. Rc2 {[%clk 0:02:26]}  Rc8 {[%clk 0:02:03]} 28. Rfc1 {[%clk 0:02:26]}  Rxc2 {[%clk 0:02:03]} 29. Rxc2 {[%clk 0:02:27]}  Ng4 {[%clk 0:02:03]} 30. Nd5 {[%clk 0:02:17]}  Bh6 {[%clk 0:01:57]} 31. Rc3 {[%clk 0:02:15]}  Rd8 {[%clk 0:01:56]} 32. h3 {[%clk 0:02:15]}  Ne5 {[%clk 0:01:46]} 33. Nf4 {[%clk 0:02:11]}  Rd1+ {[%clk 0:01:33]} 34. Kh2 {[%clk 0:02:09]}  Rd2 {[%clk 0:01:33]} 35. Ne6 {[%clk 0:02:04]}  Nf3+ {[%clk 0:01:27]} 36. Kh1 {[%clk 0:02:04]}  Rd1+ {[%clk 0:01:27]} 37. Bf1 {[%clk 0:02:05]}  Rxf1+ {[%clk 0:01:28]} 38. Kg2 {[%clk 0:02:06]}  Rg1+ {[%clk 0:01:28]} 39. Kf2 {[%clk 0:02:07]}  Kg8 {[%clk 0:01:21]} 40. Rc7 {[%clk 0:02:01]}  Ra1 {[%clk 0:01:18]} 41. Rxb7 {[%clk 0:01:56]}  Rxa2+ {[%clk 0:01:17]} 42. Kf1 {[%clk 0:01:56]}  Bxe3 {[%clk 0:01:17]} 43. Rg7+ {[%clk 0:01:56]}  Kh8 {[%clk 0:01:16]} 44. Rf7 {[%clk 0:01:56]}  Rf2# {[%clk 0:01:15]} 0-1


[Site "https://www.chess.com"]